bitfinex-derivatives/quotes_ETHF0:USTF0_20250428
["timestamp","ask_amount","ask_price","bid_price","bid_amount"]
[1745857114491,1.13903,1755.3,1755.0,40.8]
[1745857114492,1.13907,1755.2,1755.0,41.93915]
[1745857114698,1.6668,1755.4,1755.0,41.93915]
[1745857114699,1.13913,1755.1,1755.0,44.0078]
[1745857114899,3.2078,1755.3,1755.1,1.13911]
[1745857115101,4.34682,1755.3,1755.1,1.13911]
[1745857115397,1.13907,1755.2,1755.1,1.13911]
[1745857115597,4.34685,1755.3,1755.1,1.13911]
[1745857115901,1.13907,1755.2,1755.1,1.13911]
[1745857116090,1.13907,1755.2,1755.0,47.8098]
[1745857116091,1.13913,1755.1,1755.0,48.94898]
[1745857116294,1.13913,1755.1,1755.0,47.8098]
[1745857116592,1.13913,1755.1,1755.0,3.802]
[1745857116791,3.2078,1755.3,1755.0,3.802]
[1745857116992,1.13913,1755.2,1755.0,4.94117]
[1745857117199,4.34685,1755.3,1755.1,1.13911]
[1745857117391,1.13907,1755.2,1755.1,1.13911]
[1745857117793,1.13907,1755.2,1755.0,4.94116]
[1745857117990,1.13913,1755.1,1755.0,3.802]
[1745857118193,5.99143,1755.1,1755.0,3.802]
[1745857118395,3.2078,1755.1,1755.0,4.9412]
[1745857118703,4.8523,1755.4,1755.1,1.13913]
[1745857118999,1.1391,1755.2,1755.0,4.94115]
[1745857119297,1.1391,1755.2,1755.1,1.13913]
[1745857119298,1.13908,1755.2,1755.1,1.13913]
[1745857119601,1.13905,1755.3,1755.2,1.13907]
[1745857119793,1.1391,1755.2,1755.1,1.13912]
[1745857120494,7.69967,1755.4,1755.0,3.802]
[1745857120694,1.13913,1755.1,1755.0,4.94115]
[1745857120900,1.13912,1755.2,1755.1,1.13912]
[1745857121101,1.13912,1755.2,1755.0,3.802]
[1745857121102,1.13913,1755.1,1755.0,4.94117]
[1745857121297,4.34693,1755.1,1755.0,3.802]
[1745857121502,9.34693,1755.1,1755.0,0.28851]
[1745857121800,2.8485,1754.7,1754.3,1.13959]
[1745857122000,3.2078,1754.8,1754.4,3.2078]
[1745857122298,1.13931,1754.9,1754.5,2.84875]
[1745857122489,1.6595,1755.0,1754.7,4.34715]
[1745857122695,1.13933,1754.8,1754.7,1.13935]
[1745857122995,4.8673,1755.0,1754.8,1.13932]
[1745857122996,1.13931,1754.9,1754.8,1.13932]
[1745857123305,4.34705,1755.0,1754.9,1.13926]
[1745857123502,6.00655,1755.0,1754.9,1.13926]
[1745857123801,1.13934,1754.8,1754.7,1.13932]
[1745857124105,3.2078,1754.8,1754.2,48.1848]
[1745857124303,1.13954,1754.5,1754.4,1.13954]
[1745857124501,2.78964,1754.7,1754.6,1.13946]
[1745857125199,1.1886,1754.9,1754.6,5.0]
[1745857125502,1.13928,1754.9,1754.8,1.13927]
[1745857125695,1.13933,1754.8,1754.7,2.74076]
[1745857127095,1.13933,1754.8,1754.3,1.1281]
[1745857127096,3.2078,1754.8,1754.3,7.02712]
[1745857127302,1.13946,1754.6,1754.5,1.6532]
[1745857127490,1.13959,1754.4,1754.3,4.178]
[1745857127694,1.13959,1754.4,1754.3,6.97085]
[1745857128001,1.13959,1754.4,1754.3,5.8312]
[1745857128206,1.13959,1754.4,1754.3,6.97085]
[1745857128391,1.6414,1754.5,1754.3,5.8312]
[1745857128597,1.6414,1754.5,1754.4,2.79279]
[1745857128800,2.78092,1754.5,1754.4,2.79279]
[1745857129101,1.6414,1754.5,1754.3,4.178]
[1745857129401,1.05536088,1754.5,1754.3,4.178]
[1745857129599,1.13965,1754.3,1754.2,2.7929]
[1745857129792,1.13964,1754.4,1754.3,1.13963]
[1745857129998,1.13957,1754.5,1754.4,2.81109]
[1745857130300,1.1395,1754.6,1754.5,1.13949]
[1745857130504,1.1395,1754.6,1754.0,3.2078]
[1745857130505,3.2078,1754.6,1754.0,3.2078]
[1745857130705,1.13975,1754.2,1754.1,1.13974]
[1745857130903,1.13975,1754.2,1754.1,43.61124]
[1745857131198,1.13975,1754.2,1754.1,1.6715]
[1745857131402,1.13972,1754.3,1754.1,1.6715]
[1745857131598,6.05661,1754.5,1754.1,1.6715]
[1745857131599,1.13972,1754.2,1754.1,1.6715]
[1745857131799,1.13972,1754.2,1752.9,8.34439909]
[1745857131800,4.179,1754.2,1752.9,8.34439909]
[1745857132106,3.2078,1752.1,1751.8,20.97579377]
[1745857132303,3.2078,1750.4,1748.7,15.536]
[1745857132499,3.2078,1748.7,1748.3,496.6791818]
[1745857132706,3.2078,1748.4,1748.3,493.4713818]
[1745857132896,3.2078,1748.4,1748.3,479.97854022]
[1745857132897,1.1435,1748.4,1748.3,479.97854022]
[1745857133406,17.17202916,1748.4,1748.3,459.78029982]
[1745857133607,0.44851516,1748.4,1748.3,403.45218807]
[1745857133799,1.59201516,1748.4,1748.3,388.88046673]
[1745857134001,1.59201516,1748.4,1748.3,380.50551647]
[1745857134197,5.39401516,1748.4,1748.3,375.94098085]
[1745857134403,3.2078,1749.9,1748.3,490.91303683]
[1745857134604,3.2078,1749.9,1748.7,3.2078]
[1745857134904,3.2078,1749.8,1748.8,3.2078]
[1745857135105,3.2078,1749.8,1748.3,420.69019106]
[1745857135106,0.44969471,1750.6,1748.3,375.94098085]
[1745857135304,9.567,1750.9,1749.5,0.2859921]
[1745857135305,3.802,1749.9,1749.5,0.2859921]
[1745857135505,18.12760071,1749.7,1749.2,9.848]
[1745857135712,18.12760071,1749.7,1749.4,3.4937921]
[1745857136098,18.12760071,1749.7,1748.4,2.3439]
[1745857136099,3.2078,1749.5,1747.7,0.2859921]
[1745857136408,3.2078,1749.1,1747.9,0.2859921]
[1745857136608,3.2078,1748.7,1747.8,0.2859921]
[1745857136903,1.14382,1747.9,1747.8,47.95701021]
[1745857137106,3.802,1748.7,1748.4,37.79024527]
[1745857137297,3.2078,1749.4,1748.6,90.02600808]
[1745857137499,18.12760071,1749.7,1747.9,0.2859921]
[1745857137500,3.2078,1749.1,1747.9,0.2859921]
[1745857137707,3.2078,1748.1,1747.3,3.2078]
[1745857137896,3.2078,1747.4,1746.7,65.7851]
[1745857138096,3.2078,1747.5,1747.0,51.94977071]
[1745857138309,3.2078,1747.7,1747.0,0.2859921]
[1745857138506,18.53367322,1747.9,1747.4,0.2859921]
[1745857138803,15.32587322,1747.9,1747.8,0.2859921]
[1745857139006,8.8217444,1748.9,1748.7,36.74368737]
[1745857139203,8.8217444,1748.9,1748.5,36.45769527]
[1745857139401,8.8217444,1748.9,1748.7,52.23576281]
[1745857139610,1.1997444,1748.9,1748.8,88.69345808]
[1745857139814,1.1997444,1748.9,1748.8,90.31035808]
[1745857140104,16.13609202,1749.2,1748.8,161.97861368]
[1745857140311,16.13609202,1749.2,1749.0,87.49371368]
[1745857140511,16.13609202,1749.2,1749.1,87.49371368]
[1745857140811,16.13609202,1749.2,1748.9,1.9028921]
[1745857141111,19.93809202,1749.2,1749.0,41.0859921]
[1745857141302,7.35685286,1749.2,1749.1,87.11061368]
[1745857141508,7.35685286,1749.2,1749.1,79.81799113]
[1745857141811,5.33227929,1749.4,1749.1,136.56013827]
[1745857142011,5.33227929,1749.4,1749.3,74.05203827]
[1745857142508,1.14328,1748.8,1748.5,0.2859921]
[1745857142805,3.2078,1749.6,1749.3,0.2859921]
[1745857143013,3.2078,1749.6,1749.3,27.79399011]
[1745857143308,3.802,1749.6,1749.3,1.6069]
[1745857143506,3.802,1749.6,1749.4,26.18709011]
[1745857143809,2.85715,1749.4,1748.6,41.0859921]
[1745857144000,3.2078,1748.9,1748.6,41.0859921]
[1745857144203,3.802,1749.4,1749.0,46.28256322]
[1745857144410,3.802,1749.4,1749.3,46.28256322]
[1745857144914,1.14317,1748.9,1748.8,0.2859921]
[1745857145113,12.0098,1749.4,1748.7,12.86496423]
[1745857145114,1.14324,1748.8,1748.7,12.86496423]
[1745857145305,3.2078,1748.9,1748.6,0.2859921]
[1745857145608,3.2078,1749.5,1748.8,0.2859921]
[1745857145814,1.14297,1749.2,1749.1,1.5628]
[1745857146012,4.35074,1749.3,1749.1,36.30130689]
[1745857146208,1.14289,1749.4,1749.2,46.28256322]
[1745857146408,5.33227929,1749.7,1749.3,35.02449899]
[1745857146609,3.2078,1750.0,1749.6,11.54405633]
[1745857146808,3.2078,1750.0,1749.0,3.2078]
[1745857146809,2.857,1749.5,1748.5,3.4937921]
[1745857147012,1.14304,1749.1,1749.0,11.25806423]
[1745857147214,3.2078,1749.1,1748.8,28.77793311]
[1745857147409,3.2078,1749.1,1749.0,30.53293311]
[1745857147618,1.14304,1749.1,1749.0,30.53293311]
[1745857147909,1.14301,1749.2,1749.0,71.33293311]
[1745857148212,1.14301,1749.2,1748.4,0.04652]
[1745857148213,1.14369,1748.1,1748.0,9.39e-06]
[1745857148414,3.2078,1748.1,1747.6,1.6222]
[1745857148617,1.14376,1748.0,1747.9,28.77793311]
[1745857148914,3.2078,1748.1,1747.6,3.2078]
[1745857149112,3.2078,1747.9,1747.5,1.6222]
[1745857149307,3.802,1748.1,1747.7,8.44071882]
[1745857149511,3.2078,1747.9,1747.7,8.44071882]
[1745857149811,4.35162,1747.9,1747.8,8.44071882]
[1745857150012,1.14389,1747.8,1747.7,10.06291882]
[1745857150215,1.14389,1747.8,1747.7,1.6222]
[1745857150415,7.85977,1747.8,1747.2,64.155]
[1745857150620,3.2078,1747.4,1747.3,8.44071882]
[1745857150911,4.35199,1747.4,1747.2,40.8]
[1745857151104,3.2078,1747.4,1746.7,3.2078]
[1745857151310,3.2078,1746.9,1745.7,3.2078]
[1745857151510,3.2078,1745.9,1745.7,6.69808028]
[1745857151707,3.2078,1745.9,1745.2,104.955]
[1745857152012,3.2078,1746.1,1745.8,6.69808028]
[1745857152223,4.35271,1746.3,1745.5,3.2078]
[1745857152410,3.2078,1746.3,1746.0,6.69808028]
[1745857152611,2.86126,1746.9,1746.0,6.69808028]
[1745857152612,3.2078,1746.6,1746.2,6.69808028]
[1745857152813,4.8307,1747.5,1747.1,6.69808028]
[1745857153011,3.2078,1747.7,1747.5,6.69808028]
[1745857153213,5.884,1749.1,1747.5,6.69808028]
[1745857153214,3.2078,1748.8,1748.0,7.84184028]
[1745857153411,3.2078,1748.8,1748.2,6.69808028]
[1745857153611,3.2078,1748.8,1748.4,6.69808028]
[1745857153817,3.2078,1749.2,1748.7,6.69808028]
[1745857154011,3.2078,1749.2,1748.8,2.91643]
[1745857154214,1.14308,1749.1,1748.9,6.69808028]
[1745857154413,3.2078,1749.5,1748.9,8.36768028]
[1745857154617,3.2078,1749.5,1749.2,6.69808028]
[1745857154813,3.2078,1749.5,1749.3,1.6696]
[1745857154814,1.1428,1749.5,1749.3,1.6696]
[1745857155013,6.47496929,1749.7,1749.4,9.90588028]
[1745857155322,4.8307,1750.0,1749.5,11.57548028]
[1745857155518,1.14243,1750.1,1749.6,4.35049]
[1745857155816,1.14261,1749.8,1749.5,3.2078]
[1745857156116,1.14243,1750.1,1749.8,6.69808028]
[1745857156321,1.14243,1750.1,1749.9,6.69808028]
[1745857156527,1.14243,1750.1,1749.1,2.85748]
[1745857156528,1.14269,1749.7,1749.6,3.2078]
[1745857156715,1.14267,1749.7,1749.4,9.90588028]
[1745857157016,1.14265,1749.7,1749.6,6.69808028]
[1745857157218,3.2078,1750.2,1749.6,6.69808028]
[1745857157409,1.14245,1750.0,1749.9,6.69808028]
[1745857157718,3.2078,1750.5,1749.9,6.69808028]
[1745857158020,3.2078,1750.5,1749.9,3.2078]
[1745857158319,1.1421,1750.6,1750.4,6.69808028]
[1745857158819,3.2078,1750.9,1750.4,6.69808028]
[1745857159124,1.14206,1750.6,1750.5,49.20128028]
[1745857159320,3.2078,1750.9,1750.6,6.69808028]
[1745857159634,1.14193,1750.8,1750.5,52.40908028]
[1745857159916,1.14195,1750.8,1750.6,6.69808028]
[1745857160124,1.14195,1750.8,1750.7,70.86808028]
[1745857160125,3.802,1750.8,1750.7,70.86808028]
[1745857160315,4.94393,1750.8,1750.7,70.86808028]
[1745857160516,3.802,1750.8,1750.7,70.86808028]
[1745857160823,4.94393,1750.8,1750.7,8.46578028]
[1745857161018,3.802,1750.8,1750.7,77.61778028]
[1745857161225,1.14183,1751.0,1750.7,78.75977028]
[1745857161426,1.14173,1751.1,1751.0,6.69808028]
[1745857161720,1.57713556,1751.1,1751.0,6.69808028]
[1745857162119,1.57713556,1751.1,1750.5,44.0078]
[1745857162120,2.85467,1750.9,1750.5,44.0078]
[1745857162321,1.14209,1750.6,1750.5,3.2078]
[1745857162515,1.14193,1750.8,1750.7,6.69808028]
[1745857162718,1.57681383,1750.8,1750.7,6.69808028]
[1745857163121,5.37881383,1750.8,1750.7,6.69808028]
[1745857163312,5.37881383,1750.8,1750.7,47.49808028]
[1745857163517,4.23688383,1750.8,1750.7,47.49808028]
[1745857164015,3.802,1750.8,1750.7,56.84788028]
[1745857164209,4.59754,1751.6,1750.7,56.84788028]
[1745857164210,3.2078,1751.5,1750.7,56.84784028]
[1745857164415,1.1418,1751.0,1750.9,6.69808028]
[1745857164615,3.2078,1751.5,1751.1,6.69808028]
[1745857164616,6.06161,1751.5,1751.1,6.69808028]
[1745857164816,6.06161,1751.5,1751.2,6.69808028]
[1745857164817,0.43447711,1751.4,1751.2,6.69808028]
[1745857165114,1.1418,1751.0,1750.9,70.83708028]
[1745857165320,1.14173,1751.1,1751.0,6.69808028]
[1745857165517,1.1418,1751.0,1750.9,64.139]
[1745857165925,1.57583711,1751.0,1750.9,70.83708028]
[1745857166218,4.9438,1751.0,1750.9,70.83708028]
[1745857166522,3.802,1751.0,1750.9,70.83708028]
[1745857167126,3.2078,1751.5,1750.9,70.83708028]
[1745857167127,1.1417,1751.2,1750.9,70.83708028]
[1745857167318,1.1416,1751.3,1751.2,6.69808028]
[1745857167513,1.57483245,1751.3,1751.2,6.69808028]
[1745857167718,1.14173,1751.1,1751.0,3.2078]
[1745857167924,1.14154,1751.4,1751.3,6.69808028]
[1745857168526,1.1418,1751.0,1750.9,46.65854301]
[1745857169022,1.1418,1751.0,1750.9,53.35662329]
[1745857169325,4.9438,1751.0,1750.9,53.35662329]
[1745857171127,4.9438,1751.0,1750.9,6.69808028]
[1745857171323,4.9438,1751.0,1750.8,3.2078]
[1745857171324,1.14186,1750.9,1750.8,67.3258]
[1745857171819,1.14186,1750.9,1750.8,67.77825943]
[1745857172328,4.94386,1750.9,1750.8,54.66796883]
[1745857172523,4.94386,1750.9,1750.8,51.0077094]
[1745857173732,1.14193,1750.8,1750.7,0.7688]
[1745857174022,0.43253072,1750.8,1750.7,0.45245943]
[1745857174326,4.94393,1750.8,1750.7,0.45245943]
[1745857175528,3.802,1750.8,1750.7,5.45245943]
[1745857175726,4.94393,1750.8,1750.7,5.45245943]
[1745857175929,3.802,1750.8,1750.4,69.0667]
[1745857176121,1.14205,1750.7,1750.5,1.14211]
[1745857176322,1.14205,1750.7,1750.6,1.6448]
[1745857176516,4.34985,1750.7,1750.6,1.6448]
[1745857176723,1.14205,1750.7,1750.6,1.6448]
[1745857177522,1.14198,1750.8,1750.6,2.78683]
[1745857177722,1.14198,1750.8,1750.7,1.6448]
[1745857179426,3.2078,1750.9,1750.7,1.6448]
[1745857179731,4.34969,1750.9,1750.8,1.14193]
[1745857179930,3.2078,1750.9,1750.8,1.14193]
[1745857180123,4.34968,1750.9,1750.7,1.6448]
[1745857180325,1.14193,1750.8,1750.7,1.6448]
[1745857180932,1.14186,1750.9,1750.7,7.78674]
[1745857181128,1.14193,1750.8,1750.7,2.78677]
[1745857181528,1.1419,1750.9,1750.7,7.78675]
[1745857181728,0.72845224,1750.8,1750.4,66.83980754]
[1745857181928,1.87038224,1750.8,1750.7,1.14194]
[1745857182130,1.16616579,1750.8,1750.7,1.14194]
[1745857182332,1.16616579,1750.8,1750.7,46.94194]
[1745857182732,2.30809579,1750.8,1750.7,46.94194]
[1745857183033,1.16616579,1750.8,1750.7,46.94194]
[1745857183228,2.30809579,1750.8,1750.7,45.8]
[1745857183424,4.02100579,1750.8,1750.4,63.98436754]
[1745857183629,1.14209,1750.6,1750.5,1.14206]
[1745857183830,0.43931562,1750.6,1750.5,6.14206]
[1745857184027,0.43931562,1750.6,1750.5,46.94206]
[1745857184229,8.54007929,1751.1,1750.6,2.85503]
[1745857184433,1.14186,1751.0,1750.9,1.14183]
[1745857185029,1.14186,1751.0,1750.8,1.7165]
[1745857185030,1.14186,1750.9,1750.8,1.7165]
[1745857185529,1.14186,1750.9,1750.8,2.85843]
[1745857185729,1.14186,1750.9,1750.8,1.7165]
[1745857185929,1.14186,1750.9,1750.8,2.85843]
[1745857186937,1.14186,1750.9,1750.8,1.7165]
[1745857187338,1.14186,1750.9,1750.8,2.85843]
[1745857187740,1.14185,1751.0,1750.8,10.88]
[1745857188043,1.14186,1750.9,1750.8,12.02193]
[1745857188339,1.14186,1750.9,1750.8,10.88]
[1745857189039,9.68184929,1751.1,1750.8,10.88]
[1745857189240,8.54007929,1751.1,1750.8,10.88]
[1745857189447,9.68184929,1751.1,1751.0,1.1418]
[1745857189749,9.68183929,1751.1,1751.0,1.1418]
[1745857190040,9.68183929,1751.1,1751.0,65.2398]
[1745857190236,9.68183929,1751.1,1751.0,60.86960041]
[1745857190442,8.54007929,1751.1,1751.0,60.86960041]
[1745857190739,8.54007929,1751.1,1751.0,62.01140041]
[1745857190940,5.33227929,1751.1,1751.0,65.21920041]
[1745857191136,5.33227929,1751.1,1751.0,62.01140041]
[1745857191441,1.14169,1751.2,1751.1,1.14167]
[1745857191630,10.31750572,1751.3,1751.2,1.14167]
[1745857191830,4.3494,1751.3,1751.2,10.592]
[1745857192034,1.14167,1751.2,1751.1,1.6691]
[1745857192341,1.14173,1751.1,1751.0,60.86960041]
[1745857192642,4.34953,1751.1,1751.0,71.46160041]
[1745857193241,8.15153,1751.1,1751.0,71.46160041]
[1745857194037,4.94373,1751.1,1751.0,71.46160041]
[1745857194239,8.15153,1751.1,1751.0,71.46160041]
[1745857195645,4.94373,1751.1,1751.0,72.60340041]
[1745857196140,1.14173,1751.1,1751.0,71.46160041]
[1745857196545,4.34953,1751.1,1751.0,71.46160041]
[1745857196746,1.14216,1750.5,1750.2,3.2078]
[1745857196945,1.14216,1750.5,1750.4,1.14219]
[1745857197141,4.8661,1750.7,1750.4,40.8]
[1745857197349,1.14202,1750.7,1750.6,1.14206]
[1745857197735,1.14206,1750.6,1750.5,1.6981]
[1745857198542,1.14219,1750.4,1750.3,77.5618]
[1745857198752,1.14219,1750.4,1750.3,74.354]
[1745857199548,2.80049,1750.4,1750.3,74.354]
[1745857200142,1.14232,1750.2,1750.1,4.9059]
[1745857200344,4.35012,1750.2,1750.1,74.36]
[1745857200641,3.2078,1750.2,1750.1,75.50239]
[1745857200950,3.2078,1750.2,1750.1,74.36]
[1745857201145,1.14222,1750.4,1750.1,82.5678]
[1745857201341,1.14222,1750.4,1750.2,2.90739]
[1745857201648,1.14222,1750.4,1750.3,1.14226]
[1745857201843,1.6119,1750.6,1750.5,1.14213]
[1745857202043,3.2078,1750.7,1750.2,4.6209]
[1745857202248,1.14215,1750.5,1750.4,1.14216]
[1745857202442,1.14212,1750.6,1750.5,1.14212]
[1745857202636,1.14219,1750.4,1750.3,4.9442]
[1745857203048,1.14219,1750.4,1750.3,13.756]
[1745857203248,4.94419,1750.4,1750.3,9.954]
[1745857203446,1.14229,1750.3,1750.1,66.9141179]
[1745857203642,1.14229,1750.3,1750.2,9.954]
[1745857204043,10.23409,1750.3,1750.2,4.18240509]
[1745857204452,5.884,1750.3,1750.2,5.32472509]
[1745857204742,7.02626,1750.3,1750.2,4.18240509]
[1745857204948,7.02626,1750.3,1750.2,5.32472509]
[1745857205151,7.02626,1750.3,1750.2,4.18240509]
[1745857205346,10.23406,1750.3,1750.2,4.18240509]
[1745857205851,10.23406,1750.3,1750.2,11.09632]
[1745857206244,9.0918,1750.3,1750.2,11.09632]
[1745857206649,10.23406,1750.3,1750.2,11.09632]
[1745857206844,9.0918,1750.3,1750.2,11.09632]
[1745857207050,26.31686717,1750.4,1750.3,1.14226]
[1745857207244,2.85519,1750.6,1750.3,1.14221]
[1745857207548,1.14215,1750.5,1750.4,1.14211]
[1745857208149,1.14211,1750.6,1750.5,1.14208]
[1745857208345,30.28677329,1751.0,1750.8,1.14187]
[1745857208346,1.1419,1750.9,1750.8,1.14187]
[1745857208553,24.57772329,1751.0,1750.8,9.955]
[1745857208844,24.57772329,1751.0,1750.9,1.14186]
[1745857209044,24.57772329,1751.0,1750.9,4.34966]
[1745857209237,24.57772329,1751.0,1750.9,10.98556]
[1745857209437,13.15372329,1751.0,1750.9,10.98556]
[1745857209838,13.15372329,1751.0,1750.9,1.6359]
[1745857210049,1.14186,1750.9,1750.8,11.09691]
[1745857210253,1.14193,1750.8,1750.7,3.2078]
[1745857210446,1.14193,1750.8,1750.7,9.672]
[1745857210647,1.14193,1750.8,1750.7,10.814]
[1745857210849,1.14193,1750.8,1750.7,9.672]
[1745857211451,6.14193,1750.8,1750.7,9.672]
[1745857211646,6.14193,1750.8,1750.3,1.14223]
[1745857211647,2.85504,1750.7,1750.3,1.14223]
[1745857211847,1.14213,1750.5,1750.4,9.672]
[1745857212039,3.2078,1750.7,1750.4,9.672]
[1745857212242,1.1419,1750.9,1750.5,3.2078]
[1745857212551,10.11669878,1751.0,1750.9,1.14186]
[1745857212945,11.25849878,1751.0,1750.9,1.14186]
[1745857214153,11.25854878,1751.0,1750.9,1.14186]
[1745857214355,1.14186,1750.9,1750.8,1.14188]
[1745857214552,2.8547,1750.9,1750.5,3.2078]
[1745857214756,2.75678,1750.8,1750.7,1.142]
[1745857214952,2.75678,1750.8,1750.7,10.813]
[1745857215253,1.6148,1750.8,1750.7,10.813]
[1745857215454,2.75673,1750.8,1750.7,10.813]
[1745857215647,2.75673,1750.8,1750.7,9.671]
[1745857216253,1.6148,1750.8,1750.5,4.34989]
[1745857216452,1.142,1750.7,1750.6,74.61906]
[1745857216755,2.75678,1750.8,1750.7,1.142]
[1745857216956,1.14198,1750.8,1750.7,1.142]
[1745857217147,2.74848,1750.8,1750.7,1.142]
[1745857217349,1.6065,1750.8,1750.7,1.142]
[1745857217548,19.57310908,1750.9,1750.8,1.14193]
[1745857217751,19.57310908,1750.9,1750.8,2.79853]
[1745857218049,19.57310908,1750.9,1750.6,73.477]
[1745857218255,19.57310908,1750.9,1750.8,1.14193]
[1745857218458,19.57310908,1750.9,1750.8,4.34973]
[1745857218658,19.57310908,1750.9,1750.8,9.34973]
[1745857219248,17.30400908,1750.9,1750.8,9.34973]
[1745857219650,14.17719908,1750.9,1750.8,9.34973]
[1745857219856,7.50020008,1750.9,1750.8,50.14973]
[1745857220154,11.3425732,1751.1,1751.0,1.1418]
[1745857220155,8.01583038,1751.1,1751.0,1.1418]
[1745857220458,6.82540038,1751.1,1751.0,4.3496]
[1745857220657,6.82540038,1751.1,1751.0,9.3496]
[1745857221043,6.82540038,1751.1,1751.0,50.1496]
[1745857221252,6.82540038,1751.1,1751.0,53.9516]
[1745857221658,7.56778842,1751.1,1751.0,53.9516]
[1745857221959,7.85335584,1751.1,1751.0,48.9516]
[1745857222256,7.85335584,1751.1,1751.0,52.378]
[1745857222655,7.85335584,1751.1,1751.0,55.5858]
[1745857222853,7.85335584,1751.1,1751.0,52.378]
[1745857223250,7.85335584,1751.1,1751.0,55.5858]
[1745857223452,7.85335584,1751.1,1751.0,58.0476]
[1745857223658,7.85335584,1751.1,1751.0,59.6818]
[1745857223956,7.56778842,1751.1,1751.0,64.6818]
[1745857224358,7.85335584,1751.1,1751.0,64.6818]
[1745857224653,7.56778842,1751.1,1751.0,64.6818]
[1745857225454,6.38059842,1751.1,1751.0,64.6818]
[1745857225758,13.51856949,1751.7,1751.6,1.14141]
[1745857225955,1.42690742,1751.7,1751.6,74.31741]
[1745857226153,3.04110742,1751.7,1751.6,74.31741]
[1745857226353,3.04110742,1751.7,1751.6,115.11741]
[1745857226755,3.04110742,1751.7,1751.6,113.976]
[1745857227759,3.04110742,1751.7,1751.6,115.11741]
[1745857227951,3.04110742,1751.7,1751.6,113.976]
[1745857228756,3.04110742,1751.7,1751.6,115.11741]
[1745857231063,1.89976742,1751.7,1751.6,115.11741]
[1745857231662,0.28556742,1751.7,1751.6,115.11741]
[1745857231962,1.42690742,1751.7,1751.6,115.11741]
[1745857232157,1.42690742,1751.7,1751.6,113.976]
[1745857232862,3.15590742,1751.7,1751.6,113.976]
[1745857233161,6.95790742,1751.7,1751.6,113.976]
[1745857233461,6.95790742,1751.7,1751.6,115.11741]
[1745857233861,6.95790742,1751.7,1751.6,113.976]
[1745857234055,2.01456742,1751.7,1751.6,115.11741]
[1745857234461,3.15590742,1751.7,1751.6,115.11741]
[1745857234660,2.01456742,1751.7,1751.6,115.11741]
[1745857234857,0.28556742,1751.7,1751.6,115.11741]
[1745857235054,3.2078,1752.0,1751.6,115.11741]
[1745857235055,1.88946742,1751.8,1751.7,1.14134]
[1745857235364,0.28556742,1751.8,1751.7,1.14134]
[1745857235559,0.28556742,1751.9,1751.8,1.14128]
[1745857235762,0.28556742,1751.9,1751.8,4.34908]
[1745857235962,1.42662742,1752.2,1752.1,1.14108]
[1745857236157,3.10272742,1752.2,1752.1,41.94108]
[1745857236360,1.96166742,1752.2,1752.1,45.14888]
[1745857236558,3.10268742,1752.2,1752.1,45.14888]
[1745857236759,3.10268742,1752.2,1752.1,41.94108]
[1745857237461,1.96166742,1752.2,1752.1,41.94108]
[1745857237958,0.28556742,1752.2,1752.1,43.55608]
[1745857238152,0.28556742,1752.2,1752.1,48.55608]
[1745857238358,0.28556742,1752.4,1752.3,1.14095]
[1745857238560,0.28556742,1752.4,1752.3,12.87875]
[1745857239161,1.96166742,1752.4,1752.3,12.87875]
[1745857239359,0.28556742,1752.4,1752.3,12.87875]
[1745857240068,0.28556742,1752.5,1752.4,1.14089]
[1745857240259,0.28556742,1752.5,1752.4,64.052]
[1745857240458,1.42638742,1752.5,1752.4,64.052]
[1745857240865,3.17728742,1752.5,1752.4,64.052]
[1745857241365,6.97928742,1752.5,1752.4,64.052]
[1745857241862,11.97928742,1752.5,1752.4,49.25331]
[1745857242273,11.97928742,1752.5,1752.4,47.74073]
[1745857242455,11.97928742,1752.5,1752.4,46.169]
[1745857243867,11.97928742,1752.5,1752.4,43.63253]
[1745857246566,6.97928742,1752.5,1752.4,43.63253]
[1745857247269,6.97928742,1752.5,1752.4,33.44352908]
[1745857247877,6.97928742,1752.5,1752.4,34.58441908]
[1745857248170,4.08756742,1752.5,1752.4,42.79221908]
[1745857248375,4.08756742,1752.5,1752.4,44.49691908]
[1745857249173,0.28556742,1752.5,1752.4,44.49691908]
[1745857249372,0.28556742,1752.6,1752.5,1.14082]
[1745857249673,0.28556742,1752.6,1752.5,2.84552]
[1745857249869,0.28556742,1752.6,1752.5,7.84552]
[1745857250678,9.39845059,1753.1,1753.0,1.1405]
[1745857250974,9.39845059,1753.1,1753.0,12.5863]
[1745857251172,9.39845059,1753.1,1753.0,17.5863]
[1745857251376,1e-08,1753.1,1753.0,58.3863]
[1745857252679,1e-08,1753.1,1753.0,58.69891382]
[1745857252878,1.14043001,1753.1,1753.0,52.2458]
[1745857253081,1e-08,1753.1,1753.0,58.3863]
[1745857253280,1.14043001,1753.1,1753.0,49.038]
[1745857253477,1.14043001,1753.1,1753.0,52.2458]
[1745857253778,1.14043001,1753.1,1753.0,49.038]
[1745857254279,4.94243001,1753.1,1753.0,8.238]
[1745857254877,4.94243001,1753.1,1752.9,1.14055]
[1745857254878,1.14069,1752.7,1752.6,5.99642]
[1745857255074,1.14069,1752.7,1752.6,12.29952]
[1745857255274,1.14069,1752.7,1752.6,53.09952]
[1745857255777,1.14069,1752.7,1752.6,45.14852]
[1745857255979,1.14069,1752.7,1752.6,49.89168]
[1745857256183,1.14068,1752.8,1752.7,1.14066]
[1745857257280,1.14069,1752.7,1752.6,49.89171]
[1745857257485,4.94268,1752.8,1752.7,1.14069]
[1745857257686,3.802,1752.8,1752.7,1.14069]
[1745857258085,3.802,1752.8,1752.7,2.89009]
[1745857258287,1.14061,1752.9,1752.8,1.14063]
[1745857259191,4.94261,1752.9,1752.8,1.14063]
[1745857259389,1.14063,1752.8,1752.7,2.89004]
[1745857259588,1.14069,1752.7,1752.6,40.8]
[1745857259792,1.14069,1752.7,1752.6,7.951]